bitfinex/quotes_ETHUSD_20251122
["timestamp","ask_amount","ask_price","bid_price","bid_amount"]
[1763779086908,0.002,2753.8,2753.7,8.18391529]
[1763779087804,0.002,2753.8,2753.7,7.77841129]
[1763779089674,0.4578,2753.8,2753.7,7.77841129]
[1763779089897,0.9182,2753.8,2753.7,4.0679971]
[1763779090098,0.4578,2753.8,2753.7,4.0679971]
[1763779090496,0.9182,2753.8,2753.7,0.37104142]
[1763779090674,0.9182,2753.8,2753.6,0.90699264]
[1763779090876,0.9162,2753.7,2753.6,0.90699264]
[1763779091083,0.9162,2753.7,2753.5,3.69695568]
[1763779091277,0.9162,2753.6,2753.5,3.69695568]
[1763779092043,0.4558,2753.2,2752.7,0.9162]
[1763779092181,0.4604,2753.5,2751.8,3.69695568]
[1763779092182,0.6443,2752.8,2751.8,3.69695568]
[1763779092382,0.6443,2752.8,2751.7,3.69695568]
[1763779092623,0.4558,2751.8,2751.7,3.69695568]
[1763779092847,0.1885,2752.8,2751.8,1.31249664]
[1763779093132,0.4604,2752.7,2751.7,0.36969557]
[1763779093276,0.4604,2752.7,2752.0,3.69695568]
[1763779093477,0.4558,2752.1,2752.0,3.69695568]
[1763779094584,0.9162,2752.1,2752.0,3.69695568]
[1763779096515,0.4558,2752.1,2752.0,3.69695568]
[1763779097418,0.4558,2752.1,2751.9,3.69695568]
[1763779097616,0.4558,2752.0,2751.9,3.69695568]
[1763779097798,0.4558,2752.0,2751.9,4.06665125]
[1763779098004,0.9162,2752.0,2751.9,4.06665125]
[1763779099030,0.4604,2752.4,2751.9,4.06875125]
[1763779099241,0.4604,2752.4,2751.9,4.06665125]
[1763779099429,0.4558,2752.0,2751.9,4.47215525]
[1763779099939,0.9162,2752.0,2751.9,4.47215525]
[1763779101441,0.4558,2752.0,2751.9,4.47215525]
[1763779101813,0.9162,2752.0,2751.8,3.69695568]
[1763779102018,0.6443,2751.9,2751.8,3.69695568]
[1763779102228,1.1047,2751.9,2751.8,3.69695568]
[1763779102932,1.1047,2751.9,2751.6,0.001]
[1763779103135,0.4558,2751.7,2751.6,0.001]
[1763779103506,0.9162,2751.7,2751.6,0.001]
[1763779104713,0.4558,2751.7,2751.6,0.001]
[1763779104918,0.9162,2751.7,2751.6,0.001]
[1763779107306,0.1885,2752.8,2751.6,0.0031]
[1763779107506,0.1885,2752.2,2751.8,3.69695568]
[1763779107931,0.4558,2751.9,2751.8,4.10245968]
[1763779108115,0.4604,2752.1,2751.8,4.10245968]
[1763779108534,0.4558,2751.9,2751.8,4.10245968]
[1763779108739,0.4558,2751.9,2751.8,4.54978521]
[1763779109049,0.9162,2751.9,2751.8,4.54978521]
[1763779109706,0.9162,2751.9,2751.7,3.69695568]
[1763779109934,0.1885,2752.2,2751.7,3.69695568]
[1763779109935,0.9162,2751.8,2751.7,3.69695568]
[1763779112460,0.1885,2752.2,2751.7,3.69905568]
[1763779112761,0.1885,2752.2,2752.1,3.69695568]
[1763779112958,1.1047,2752.2,2751.9,3.69695568]
[1763779113261,0.6489,2752.2,2751.8,3.69695568]
[1763779113494,0.4558,2751.9,2751.8,3.69695568]
[1763779113934,1.48649468,2751.9,2751.8,3.69695568]
[1763779114762,1.48649468,2751.9,2751.6,0.001]
[1763779115059,0.4558,2751.7,2751.6,3.69795568]
[1763779115570,0.932,2751.7,2751.6,3.69795568]
[1763779116180,0.932,2751.7,2751.6,0.001]
[1763779123270,2.01739812,2751.7,2751.6,0.001]
[1763779123776,2.01739812,2751.7,2751.5,0.001]
[1763779123940,1.74169944,2751.6,2751.5,0.001]
[1763779124290,1.74169944,2751.6,2750.6,3.69695568]
[1763779124436,1.24389944,2751.5,2750.9,3.69695568]
[1763779124640,0.4978,2751.6,2751.2,3.69695568]
[1763779124942,0.4762,2751.7,2751.2,3.69695568]
[1763779125139,1.14139569,2752.2,2750.1,1.24618358]
[1763779125140,0.4978,2751.3,2750.1,1.24618358]
[1763779125457,0.4978,2751.3,2748.8,0.18978165]
[1763779125458,0.6917,2749.5,2748.2,0.00198422]
[1763779125762,0.6917,2749.5,2748.6,3.69695568]
[1763779125763,0.76711149,2749.4,2748.6,3.69695568]
[1763779125958,0.76711149,2749.4,2748.2,0.50068422]
[1763779125959,0.76650002,2749.3,2748.3,3.69695568]
[1763779126160,0.6508,2748.4,2748.2,0.00198422]
[1763779126337,0.76650002,2748.9,2748.2,0.00198422]
[1763779126539,0.4978,2748.3,2748.2,0.00198422]
[1763779126947,0.974,2748.3,2748.2,0.00198422]
[1763779127778,2.30641713,2748.3,2748.2,0.00198422]
[1763779127984,3.44405148,2748.3,2748.2,0.00198422]
[1763779128280,2.68282385,2748.3,2748.2,0.00198422]
[1763779128462,3.44220653,2748.3,2748.2,0.00198422]
[1763779129248,3.44220653,2748.3,2744.6,3.64348875]
[1763779129249,24.57573,2748.1,2744.6,3.64348875]
[1763779129492,1.31249664,2748.2,2746.9,3.69695568]
[1763779129493,0.75938268,2748.0,2746.9,3.69695568]
[1763779129656,2.34192648,2748.2,2746.9,3.69695568]
[1763779129657,0.6701,2747.9,2746.9,3.69695568]
[1763779130046,0.4762,2747.8,2746.9,3.69695568]
[1763779130247,0.4762,2747.8,2746.7,0.4987]
[1763779130248,0.4762,2747.8,2747.0,3.69695568]
[1763779130551,0.4762,2747.8,2747.1,0.36969557]
[1763779130748,0.4762,2747.8,2747.1,0.53709557]
[1763779130993,0.4762,2747.8,2747.1,0.36969557]
[1763779131287,0.4762,2747.8,2746.8,3.69695568]
[1763779132080,0.4762,2747.8,2746.8,4.19565568]
[1763779133049,0.4762,2747.8,2746.0,0.1674]
[1763779133050,0.1939,2747.9,2747.3,3.69695568]
[1763779133360,0.6701,2747.9,2747.3,3.69695568]
[1763779133847,0.75368383,2748.2,2747.3,3.69695568]
[1763779134049,1.0473895,2748.3,2747.4,0.36969557]
[1763779134446,0.95873384,2748.8,2747.6,3.69695568]
[1763779134652,0.4762,2748.8,2747.9,3.69695568]
[1763779134850,0.6292,2749.0,2748.2,3.69695568]
[1763779135046,0.6292,2749.0,2748.3,0.36969557]
[1763779135285,0.1939,2749.5,2748.9,3.69695568]
[1763779135451,0.6701,2749.5,2748.9,3.69695568]
[1763779136362,0.1939,2749.5,2748.9,3.69695568]
[1763779136564,0.4762,2749.4,2748.9,3.69695568]
[1763779136799,0.4762,2749.4,2748.6,3.69695568]
[1763779137000,0.4762,2749.4,2748.3,0.86839557]
[1763779137001,0.4978,2749.0,2748.3,0.36969557]
[1763779137299,0.4978,2749.0,2748.2,3.69695568]
[1763779137498,0.1939,2748.9,2748.3,0.39007445]
[1763779140204,1.15463384,2749.5,2748.3,0.39007445]
[1763779140205,0.002,2749.5,2748.9,0.90699264]
[1763779140369,0.4762,2749.4,2748.9,0.90699264]
[1763779140698,0.4978,2749.0,2748.4,0.90699264]
[1763779140897,0.1939,2748.9,2748.4,1.40639492]
[1763779141121,0.002,2749.5,2748.9,0.494]
[1763779141414,0.002,2749.5,2748.9,4.19095568]
[1763779141566,0.002,2749.5,2749.2,3.69695568]
[1763779141765,0.002,2749.5,2748.9,3.69695568]
[1763779141968,0.002,2749.5,2748.9,4.11652125]
[1763779142802,0.002,2749.5,2748.9,0.41956557]
[1763779143006,0.4978,2749.0,2748.4,0.405504]
[1763779143184,0.4978,2749.0,2748.5,3.69695568]
[1763779143382,0.002,2749.5,2748.9,4.19095568]
[1763779143611,0.002,2749.5,2748.6,3.69695568]
[1763779143932,0.4762,2749.4,2748.6,3.69695568]
[1763779145438,1.23172072,2749.4,2748.6,3.69695568]
[1763779145618,0.4762,2749.4,2748.6,3.69695568]
[1763779146403,1.23244096,2749.4,2748.6,3.69695568]
[1763779146843,1.23244096,2749.4,2748.7,3.10417966]
[1763779147308,0.4762,2749.4,2748.7,3.10417966]
[1763779148007,0.57091605,2749.3,2748.7,3.10417966]
[1763779148515,0.57091605,2749.3,2749.1,3.10417966]
[1763779149051,0.57091605,2749.3,2749.1,3.27157966]
[1763779149246,0.57091605,2749.3,2749.1,0.1674]
[1763779150653,1.67287744,2749.2,2748.2,0.90699264]
[1763779150810,0.3548,2749.0,2748.2,0.90699264]
[1763779151229,0.1849,2748.9,2748.2,0.90699264]
[1763779151446,0.1849,2748.9,2748.1,3.27157966]
[1763779151447,0.3548,2749.0,2748.5,3.10417966]
[1763779151677,0.4633,2749.2,2747.5,0.3548]
[1763779151678,3.318345,2748.5,2747.5,0.3548]
[1763779151976,3.318345,2748.5,2746.8,0.001]
[1763779151977,0.6955345,2748.4,2747.6,3.10417966]
[1763779152180,0.6955345,2748.4,2747.1,0.1674]
[1763779152181,1.22303862,2748.8,2747.9,3.10417966]
[1763779152328,1.22303862,2748.8,2747.8,3.10417966]
[1763779152329,0.76061705,2748.7,2747.8,3.10417966]
[1763779152524,0.4633,2748.6,2747.8,3.10417966]
[1763779152765,0.4633,2748.6,2747.8,3.41459763]
[1763779152939,0.76061376,2748.5,2747.8,0.31041797]
[1763779153150,0.4633,2748.6,2747.6,0.90699264]
[1763779153461,1.22466084,2748.5,2747.6,0.90699264]
[1763779153669,0.76136084,2748.4,2747.6,0.90699264]
[1763779153864,0.4633,2748.4,2747.6,0.90699264]
[1763779154070,3.73987966,2747.7,2746.8,0.001]
[1763779154241,0.6357,2746.9,2746.8,0.001]
[1763779154794,1.099,2746.9,2746.8,0.001]
[1763779154969,1.86063551,2746.9,2746.8,0.001]
[1763779155264,2.81936935,2746.9,2746.8,0.001]
[1763779155470,1.86063551,2746.9,2746.8,0.001]
[1763779155631,2.45299041,2746.9,2746.8,0.001]
[1763779155831,1.86063551,2746.9,2746.8,0.001]
[1763779156342,1.39733551,2746.9,2746.8,0.001]
[1763779156660,0.76163551,2746.9,2746.8,0.001]
[1763779156839,1.42203384,2747.5,2746.8,0.4811]
[1763779157039,0.57135703,2746.9,2746.8,0.001]
[1763779157558,0.57134843,2746.9,2746.8,0.001]
[1763779157757,1.48544843,2746.9,2746.8,0.001]
[1763779158070,0.57134843,2746.9,2746.8,0.001]
[1763779158428,1.02214843,2746.9,2746.8,0.001]
[1763779158650,1.48544843,2746.9,2746.8,0.001]
[1763779158848,2.24755199,2746.9,2746.8,0.001]
[1763779159089,3.20628583,2746.9,2746.8,0.001]
[1763779159300,2.74298583,2746.9,2746.8,0.001]
[1763779159753,1.78425199,2746.9,2746.8,0.001]
[1763779160355,2.73602173,2746.9,2746.8,0.001]
[1763779160557,1.78425199,2746.9,2746.8,0.001]
[1763779161194,1.78374154,2746.9,2746.8,0.001]
[1763779162765,2.24704154,2746.9,2746.8,0.001]
[1763779162962,1.33294154,2746.9,2746.8,0.001]
[1763779163199,2.24704154,2746.9,2746.8,0.001]
[1763779163357,1.33294154,2746.9,2746.8,0.001]
[1763779165357,1.78374154,2746.9,2746.8,0.001]
[1763779165560,1.33294154,2746.9,2746.8,0.001]
[1763779166400,1.33294154,2746.9,2746.8,3.58527966]
[1763779166565,1.28296748,2747.4,2746.8,3.58527966]
[1763779166566,0.95089182,2747.4,2746.8,3.58527966]
[1763779166893,0.4508,2746.9,2746.8,0.001]
[1763779167066,1.21142397,2746.9,2746.8,0.001]
[1763779167591,1.67472397,2746.9,2746.8,0.001]
[1763779167758,1.21142397,2746.9,2746.8,0.001]
[1763779168395,0.76062397,2746.9,2746.8,0.001]
[1763779169291,0.95089182,2747.3,2746.8,0.001]
[1763779169468,0.76026854,2747.2,2746.8,0.001]
[1763779169671,0.76026854,2747.1,2746.8,0.001]
[1763779170000,0.76026854,2747.0,2746.8,0.001]
[1763779170180,0.4633,2747.1,2746.8,0.001]
[1763779170381,0.76027444,2747.0,2746.8,0.001]
[1763779170582,0.4633,2747.1,2746.8,0.001]
[1763779170902,0.76015313,2747.0,2746.8,0.001]
[1763779171193,0.4633,2747.1,2746.8,0.001]
[1763779171393,0.7601593,2747.0,2746.8,0.001]
[1763779171582,0.4633,2747.1,2746.8,0.001]
[1763779171787,0.76015489,2747.0,2746.8,0.001]
[1763779171990,0.4633,2747.1,2746.8,0.001]
[1763779172785,0.76040797,2747.0,2746.8,0.001]
[1763779173104,0.4633,2747.1,2746.8,0.001]
[1763779173505,0.4633,2747.4,2746.8,0.001]
[1763779173719,1.2693513,2747.3,2746.8,0.001]
[1763779173896,0.76055209,2747.2,2746.8,0.001]
[1763779174096,0.80605461,2747.1,2746.8,0.001]
[1763779174294,0.50880252,2747.1,2746.8,0.001]
[1763779174882,0.4508,2746.9,2746.8,0.001]
[1763779177119,0.4896,2747.4,2746.8,0.4726]
[1763779177421,0.76130098,2747.3,2746.8,0.4726]
[1763779177719,0.76130098,2747.2,2746.8,0.001]
[1763779177921,0.53509756,2747.4,2746.8,0.001]
[1763779178222,1.25133999,2747.3,2746.8,0.001]
[1763779178412,0.76173999,2747.2,2746.8,0.001]
[1763779178722,0.95089182,2747.5,2746.8,0.001]
[1763779179016,0.76237169,2747.4,2746.8,0.001]
[1763779179223,0.76237169,2747.3,2746.8,0.001]
[1763779179409,0.76237169,2747.2,2746.8,0.001]
[1763779179607,0.4896,2747.2,2746.8,0.001]
[1763779179789,0.4896,2747.1,2746.8,0.001]
[1763779182009,0.04549756,2747.4,2747.0,0.4716]
[1763779182227,1.13579182,2747.7,2747.0,0.4716]
[1763779182401,1.13579182,2747.7,2746.8,3.10517966]
[1763779182402,0.4556,2747.1,2746.8,3.10517966]
[1763779183244,1.0269302,2747.1,2746.8,3.10517966]
[1763779183393,1.0269302,2747.1,2746.8,0.001]
[1763779183938,1.5165302,2747.1,2746.8,0.001]
[1763779185824,0.5713302,2747.1,2747.0,0.4716]
[1763779186193,0.5713302,2747.1,2747.0,4.47201763]
[1763779186424,0.002,2748.2,2747.0,4.47201763]
[1763779186631,0.76741186,2748.1,2748.0,3.57577966]
[1763779186921,0.002,2748.2,2748.0,3.57577966]
[1763779189415,0.9452,2748.1,2747.1,0.657]
[1763779189718,0.3216,2747.8,2747.3,3.10417966]
[1763779192017,0.1996,2747.9,2747.5,3.10417966]
[1763779193013,0.1996,2747.9,2747.3,3.59377966]
[1763779194204,0.1996,2748.0,2747.3,3.10417966]
[1763779194727,0.57314606,2748.2,2747.6,3.10417966]
[1763779194927,1.06274606,2748.2,2747.6,3.10417966]
[1763779195705,0.57314606,2748.2,2747.6,3.10417966]
[1763779197238,0.57314606,2748.2,2748.1,0.4716]
[1763779197439,0.002,2748.2,2748.1,0.639]
[1763779197636,0.002,2748.2,2748.1,1.01331797]
[1763779197822,0.002,2748.2,2748.1,1.50291797]
[1763779199726,0.002,2748.2,2748.1,0.639]
[1763779199904,0.002,2748.2,2748.1,0.4716]
[1763779200301,0.002,2748.2,2748.1,3.74317966]
[1763779200532,0.002,2748.2,2748.1,4.23277966]
[1763779201936,0.002,2748.2,2748.1,3.74317966]
[1763779202241,0.002,2748.2,2748.1,4.23277966]
[1763779202737,0.002,2748.2,2748.1,4.65605763]
[1763779205240,0.002,2748.2,2748.1,4.16645763]
[1763779205428,0.002,2748.2,2748.1,3.74317966]
[1763779207928,0.96,2748.2,2747.5,0.001]
[1763779208139,0.4945,2748.2,2747.7,3.10417966]
[1763779208459,0.002,2748.2,2747.9,3.10417966]
[1763779208950,0.002,2748.2,2747.8,3.71355706]
[1763779209766,0.002,2748.2,2747.5,3.71455706]
[1763779209767,0.6397,2747.9,2747.5,3.71455706]
[1763779210241,0.4655,2748.1,2747.5,3.71455706]
[1763779211251,0.57112334,2748.0,2747.5,3.71455706]
[1763779211552,0.57112334,2748.0,2747.5,7.52455706]
[1763779212112,1.03662334,2748.0,2747.5,7.52455706]
[1763779212517,0.4925,2747.6,2747.5,0.001]
[1763779212941,0.958,2747.6,2747.5,0.001]
[1763779213728,0.4925,2747.6,2747.5,0.001]
[1763779214345,0.002,2748.2,2747.5,4.18875706]
[1763779214642,0.002,2748.2,2748.1,4.35515706]
[1763779216018,0.57309413,2748.2,2748.1,4.35515706]
[1763779216216,0.57309413,2748.2,2748.1,4.85035706]
[1763779216519,0.002,2748.2,2748.1,4.35515706]
[1763779219274,0.002,2748.2,2748.1,4.18775706]
[1763779220847,0.4945,2748.2,2748.0,0.001]
[1763779223372,0.002,2748.2,2748.1,0.4742]
[1763779225169,0.002,2748.2,2748.0,0.001]
[1763779225932,0.002,2748.2,2748.1,0.4742]
[1763779226149,0.002,2748.2,2748.1,0.6416]
[1763779226549,0.002,2748.2,2748.0,0.001]
[1763779227787,0.002,2748.2,2748.1,4.35515706]
[1763779228158,0.002,2748.2,2748.1,4.85035706]
[1763779229772,0.002,2748.2,2748.1,5.29224983]
[1763779229970,0.002,2748.2,2748.1,6.19924247]
[1763779230199,0.002,2748.2,2748.1,6.1628537]
[1763779230501,0.002,2748.2,2748.1,7.21198464]
[1763779230666,0.002,2748.2,2748.1,11.04398464]
[1763779231478,0.002,2748.2,2748.1,7.21198464]
[1763779231680,0.002,2748.2,2748.1,7.33598464]
[1763779234206,0.002,2748.2,2748.1,7.21198464]
[1763779234614,0.002,2748.2,2748.1,6.31128064]
[1763779234932,0.002,2748.2,2748.1,5.404288]
[1763779235095,0.002,2748.2,2748.1,3.71355706]
[1763779235492,0.002,2748.2,2748.0,0.001]
[1763779235493,0.9401,2748.2,2748.0,0.001]
[1763779235798,0.3937,2748.1,2748.0,0.001]
[1763779236242,0.8747,2748.1,2748.0,0.001]
[1763779239400,0.002,2748.2,2748.0,0.001]
[1763779239651,0.4571,2748.1,2748.0,0.001]
[1763779239831,0.9381,2748.1,2748.0,0.001]
[1763779241552,0.4571,2748.1,2748.0,0.001]
[1763779242036,0.002,2748.2,2748.0,4.21425706]
[1763779242473,0.002,2748.2,2748.0,3.71455706]
[1763779242937,0.002,2748.2,2748.0,0.001]
[1763779243320,0.002,2748.2,2748.0,3.811]
[1763779243518,0.002,2748.2,2748.1,0.8808]
[1763779244212,0.002,2748.2,2748.1,0.4997]
[1763779244630,0.002,2748.2,2748.1,4.84235706]
[1763779244921,0.002,2748.2,2748.1,8.65235706]
[1763779245145,0.002,2748.2,2748.1,9.5593497]
[1763779246460,0.002,2748.2,2748.1,5.7493497]
[1763779246748,0.002,2748.2,2748.1,6.39103467]
[1763779247519,0.002,2748.2,2748.1,5.92933467]
[1763779247958,0.002,2748.2,2748.1,5.02234203]
[1763779248368,0.002,2748.2,2748.1,5.48404203]
[1763779249484,0.002,2748.2,2748.1,5.02234203]
[1763779252081,0.002,2748.2,2748.1,5.48404203]
[1763779252656,0.002,2748.2,2748.1,5.5204308]
[1763779253283,0.57296237,2748.2,2748.1,5.48404203]
[1763779255153,0.57296237,2748.2,2748.1,6.0570044]
[1763779255887,1.03006237,2748.2,2748.1,4.35524203]
[1763779257885,0.57296237,2748.2,2748.1,4.85494203]
[1763779258085,0.57296237,2748.2,2748.1,5.02234203]
[1763779258290,0.57296237,2748.2,2748.1,5.48404203]
[1763779259222,0.57296237,2748.2,2748.1,5.02234203]
[1763779259623,0.57296237,2748.2,2748.1,5.5953044]
[1763779261319,0.57296237,2748.2,2748.1,6.4625084]
[1763779261893,0.57296237,2748.2,2748.1,10.2725084]
[1763779262099,0.57296237,2748.2,2748.1,9.4053044]
[1763779262281,0.57296237,2748.2,2748.1,9.8670044]
[1763779262889,0.57296237,2748.2,2748.1,11.17950104]
[1763779263088,0.002,2748.2,2748.1,15.01150104]
[1763779263285,0.002,2748.5,2748.3,5.14449664]
[1763779263490,0.002,2748.5,2748.4,9.34601072]
[1763779263817,0.002,2748.5,2748.4,9.80771072]
[1763779264602,0.002,2748.5,2748.4,5.51401072]
[1763779264905,0.002,2748.5,2748.4,2.7074463]
[1763779265152,0.002,2748.5,2748.4,5.5257537]
[1763779265720,0.002,2748.5,2748.4,6.0202537]
[1763779266850,0.002,2748.5,2748.4,6.0566385]
[1763779267007,0.9339,2748.5,2748.1,0.57296237]
[1763779267217,0.9339,2748.5,2748.1,4.28651943]
[1763779267448,0.9339,2748.5,2748.2,0.42875194]
[1763779268551,0.4817,2748.5,2748.2,0.42875194]
[1763779268908,0.4817,2748.5,2748.4,3.1048798]
[1763779269232,0.9339,2748.5,2748.4,3.1048798]
[1763779270756,0.002,2748.5,2748.4,3.1048798]
[1763779271052,0.002,2748.5,2748.4,3.45824297]
[1763779271355,0.002,2748.5,2748.4,3.92324297]
[1763779272053,0.002,2748.5,2748.4,4.41774297]
[1763779272365,0.002,2748.5,2748.4,4.85963177]
[1763779272816,0.002,2748.5,2748.4,5.73023961]
[1763779273826,0.002,2748.5,2748.4,6.18443961]
[1763779274154,0.002,2748.5,2748.4,5.68993961]
[1763779274951,0.4817,2748.5,2748.4,5.22493961]
[1763779275252,0.002,2748.5,2748.4,5.22493961]
[1763779275757,0.002,2748.5,2748.4,4.31794697]
[1763779275913,0.002,2748.5,2748.4,3.91244297]
[1763779276112,0.4817,2748.5,2748.4,3.91244297]
[1763779276510,0.002,2748.5,2748.4,5.77893561]
[1763779276708,0.002,2748.5,2748.4,5.28443561]
[1763779277257,0.002,2748.5,2748.4,5.68993961]
[1763779277443,0.002,2748.5,2748.4,4.81943561]
[1763779277757,0.002,2748.5,2748.4,5.28443561]
[1763779278331,0.4817,2748.5,2748.4,4.81943561]
[1763779279255,0.002,2748.5,2748.4,5.28443561]
[1763779279416,0.002,2748.5,2748.4,4.37744297]
[1763779279734,0.4817,2748.5,2748.4,3.91244297]
[1763779280154,1.05263021,2748.5,2748.4,3.91244297]
[1763779280528,0.57293021,2748.5,2748.4,3.91244297]
[1763779280753,0.57293021,2748.5,2748.4,4.37744297]
[1763779281716,1.05263021,2748.5,2748.4,3.91244297]
[1763779282052,1.50483021,2748.5,2748.1,0.001]
[1763779282255,0.3858,2748.2,2748.1,0.90799264]
[1763779282418,0.57293021,2748.5,2748.1,4.18027244]
[1763779282621,0.57293021,2748.5,2748.4,3.1048798]
[1763779283156,0.57293021,2748.5,2748.4,3.41536778]
[1763779283316,0.57293021,2748.5,2748.4,3.88036778]
[1763779283517,0.57293021,2748.5,2748.4,4.28587178]
[1763779285162,0.002,2748.5,2748.4,5.68736442]
[1763779286014,0.002,2748.5,2748.4,1.62298462]
[1763779286256,0.002,2748.5,2748.4,5.19286442]
[1763779286496,0.002,2748.5,2748.3,0.57293021]
[1763779286497,0.4817,2748.5,2748.3,3.67781001]
[1763779286692,0.4542,2748.5,2748.3,3.67781001]
[1763779286988,0.4797,2748.4,2748.3,4.99030665]
[1763779287165,0.4797,2748.4,2748.3,5.48943732]
[1763779287365,0.9319,2748.4,2748.3,5.48943732]
[1763779287976,0.9319,2748.4,2748.3,4.51100311]
[1763779289389,0.4797,2748.4,2748.3,4.91650711]
[1763779289598,0.002,2748.5,2748.4,1.31249664]
[1763779289896,0.002,2748.5,2748.4,2.3192861]
[1763779292106,0.002,2748.5,2748.4,2.8137861]
[1763779292269,0.002,2748.5,2748.4,2.8501709]
[1763779292469,0.002,2748.5,2748.4,2.8137861]
[1763779293198,0.002,2748.5,2748.4,6.6217861]
[1763779293562,0.002,2748.5,2748.4,16.9237861]
[1763779295472,0.002,2748.5,2748.4,17.06958712]
[1763779296704,0.002,2748.8,2748.6,5.14449664]
[1763779296905,0.002,2748.8,2748.7,10.0578261]
[1763779297106,0.002,2749.1,2748.8,1.31249664]
[1763779297296,0.002,2749.1,2749.0,4.41737644]
[1763779297499,0.002,2749.1,2749.0,8.22337644]
[1763779297896,0.002,2749.1,2749.0,8.67457644]
[1763779298097,0.002,2749.1,2749.0,9.55661387]
[1763779299409,0.002,2749.1,2749.0,9.10541387]
[1763779299811,0.002,2749.1,2749.0,9.55661387]
[1763779300900,0.002,2749.1,2749.0,10.01881387]
[1763779301080,0.002,2749.1,2749.0,9.55661387]
[1763779301680,0.002,2749.5,2749.0,9.55661387]
[1763779301681,0.002,2749.5,2749.4,4.237504]
[1763779302004,0.002,2749.5,2749.4,5.33744684]
[1763779303091,0.002,2749.5,2749.4,5.79964684]
[1763779303712,0.002,2749.5,2749.4,4.88624684]
[1763779303889,0.4708,2749.5,2749.4,4.88624684]
[1763779304088,0.9308,2749.5,2749.4,4.88624684]
[1763779304688,1.50152295,2749.5,2749.4,4.88624684]
[1763779304888,1.04152295,2749.5,2749.4,4.88624684]
[1763779305414,0.57272295,2749.5,2749.4,5.33744684]
[1763779306492,0.57272295,2749.5,2749.4,4.88624684]
[1763779306820,1.04152295,2749.5,2749.4,4.88624684]
[1763779307191,0.57272295,2749.5,2749.4,4.88624684]
[1763779307390,0.002,2749.5,2749.4,4.88624684]
[1763779307795,0.002,2749.5,2749.4,8.69224684]
[1763779308119,0.002,2749.5,2749.4,9.14344684]
[1763779308280,0.002,2749.5,2749.4,5.33744684]
[1763779308956,0.002,2749.5,2749.4,5.37381841]
[1763779310147,0.9308,2749.5,2749.4,4.88624684]
[1763779311415,0.4708,2749.5,2749.4,4.88624684]
[1763779312055,0.9308,2749.5,2749.4,4.48074284]
[1763779312221,0.9308,2749.5,2749.4,4.01187244]
[1763779315653,0.4708,2749.5,2749.4,4.01187244]
[1763779316158,0.002,2749.5,2749.4,4.01187244]
[1763779316787,0.002,2749.5,2749.4,4.86857644]
[1763779318682,0.002,2749.5,2749.4,5.33077644]
[1763779318847,0.002,2749.5,2749.4,5.40165408]
[1763779319048,0.002,2749.5,2749.4,9.24402565]
[1763779319348,0.002,2749.5,2749.4,9.20765408]
[1763779320060,0.002,2749.5,2749.4,5.98785408]
[1763779320267,0.002,2749.5,2749.4,9.81985408]
[1763779321686,0.002,2749.5,2749.4,9.35765408]
[1763779322090,0.002,2749.5,2749.4,9.81985408]
[1763779322292,0.002,2749.5,2749.4,9.96559985]
[1763779322581,0.002,2749.5,2749.4,9.37939985]
[1763779322793,0.002,2749.5,2749.4,9.50339985]
[1763779323084,0.002,2749.5,2749.4,5.67139985]
[1763779323471,0.002,2749.5,2749.4,5.52565408]
[1763779323671,0.4708,2749.5,2749.4,1.84557428]
[1763779323870,0.4708,2749.5,2749.4,4.41737644]
[1763779325692,0.4708,2749.5,2749.4,4.41837644]
[1763779326157,0.9503,2749.5,2749.4,4.41837644]
[1763779326358,0.4708,2749.5,2749.4,4.41837644]
[1763779327298,0.4708,2749.5,2749.4,4.86021408]
[1763779327761,0.9503,2749.5,2749.4,4.86021408]
[1763779328102,0.9503,2749.5,2749.4,0.90799264]
[1763779328275,0.9503,2749.5,2749.4,0.001]
[1763779328760,0.9503,2749.5,2749.4,2.38790523]
[1763779329158,0.9503,2749.5,2749.4,0.001]
[1763779330662,0.9503,2749.5,2749.4,2.38790523]
[1763779334070,0.9503,2749.5,2749.4,2.62669575]
[1763779334071,0.4708,2749.5,2749.4,2.62669575]
[1763779334279,0.002,2749.5,2749.4,4.02748839]
[1763779334596,0.002,2749.5,2749.4,4.43299239]
[1763779334775,0.002,2749.5,2749.4,5.75407422]
[1763779335297,0.002,2749.5,2749.4,9.56007422]
[1763779336076,0.002,2749.5,2749.4,10.01277422]
[1763779337074,0.002,2749.5,2749.4,9.56007422]
[1763779337388,0.002,2749.5,2749.4,10.03877422]
[1763779337875,0.002,2749.5,2749.4,5.75407422]
[1763779341321,0.4932,2749.5,2749.4,4.85477022]
[1763779341488,0.9727,2749.5,2749.4,4.85477022]
[1763779343980,0.002,2749.5,2749.4,4.85477022]
[1763779344220,0.002,2749.5,2749.4,5.75407422]
[1763779344586,0.002,2749.5,2749.4,6.24314579]
[1763779344917,0.002,2749.5,2749.4,5.79044579]
[1763779345717,0.002,2749.5,2749.4,6.20677422]
[1763779346531,0.002,2749.5,2749.4,10.03877422]
[1763779346735,0.002,2749.5,2749.4,6.20677422]
[1763779347218,0.002,2749.5,2749.4,5.75407422]
[1763779347938,0.002,2749.5,2749.4,6.20677422]
[1763779351142,0.002,2749.5,2749.4,6.33077422]
[1763779352437,0.002,2749.5,2749.4,11.46306679]
[1763779352760,0.002,2749.5,2749.4,11.42669522]
[1763779352914,0.002,2749.5,2749.4,8.79340211]
[1763779353248,0.002,2749.5,2749.4,6.47652211]
[1763779353431,0.002,2749.8,2749.6,1.31249664]
[1763779353630,0.002,2749.8,2749.7,9.42442936]
[1763779354456,0.002,2749.8,2749.7,9.82993336]
[1763779354632,0.002,2749.8,2749.7,10.28263336]
[1763779354836,0.002,2749.8,2749.7,8.95933919]
[1763779356174,0.4841,2749.8,2749.7,8.01283919]
[1763779356374,0.9767,2749.8,2749.7,7.60733519]
[1763779356674,0.9767,2749.8,2749.7,8.01283919]